Cogmind - Beta 12 @@@ ROGUE MODE // 2023.07.04 @ 20:33:39 Player: zapruda Result: Destroyed by S-10 Pest with Light Assault Rifle Performance ------------- Evolutions (0) 0 Regions Visited (2) 400 Robots Destroyed (25) 125 Value Destroyed (499) 499 Prototype IDs (0) 0 Alien Tech Used (0) 0 Bonus (0) 0 TOTAL SCORE: 1024 Bonus ------- None Cogmind --------- Core Integrity 0/250 Matter 300/300 Energy 100/100 System Corruption 3% Temperature Cool (0) Movement Treading (160) Location -10/Mines Parts ------- > --- POWER (1) -------- (None) > --- PROPULSION (2) --- Light Treads > --- UTILITY (2) ------ Medium Storage Unit Light Armor Plating > --- WEAPON (2) ------- Flail Flail > --- INVENTORY (10) --- Heat Sink Targeting Computer Heavy Armor Plating Flail Flail Peak State ------------ > --- POWER ------------ Improved Ion Engine > --- PROPULSION ------- Light Treads Light Treads > --- UTILITY ---------- Medium Storage Unit Light Armor Plating > --- WEAPON ----------- Flail Flail > --- INVENTORY -------- Improved Ion Engine Heat Sink Targeting Computer Light Armor Plating Light Assault Rifle Flail Flail [Rating: 11] Favorites ----------- Power Improved Ion Engine Engine Improved Ion Engine Propulsion Light Treads Treads Light Treads Leg Aluminum Leg Utility Medium Storage Unit Storage Medium Storage Unit Protection Light Armor Plating Weapon Flail Energy Gun Medium Laser Ballistic Gun Light Assault Rifle Launcher Grenade Launcher Impact Weapon Flail Build | -11 -10 -10 ------- Run | Jun Mat Min Slots Evolved . | . . . Power . | . . . Propulsion . | . . . Utility . | . . . Weapon . | . . . Parts Attached 14 | . 11 3 Power 3 | . 2 1 Engine 3 | . 2 1 Core . | . . . Reactor . | . . . Propulsion 3 | . 2 1 Treads 3 | . 2 1 Leg . | . . . Wheel . | . . . Hover . | . . . Flight . | . . . Utility 4 | . 3 1 Device . | . . . Storage 1 | . 1 . Processor . | . . . Hackware . | . . . Protection 3 | . 2 1 Artifact . | . . . Weapon 4 | . 4 . Energy Gun . | . . . Energy Cannon . | . . . Ballistic Gun 1 | . 1 . Ballistic Cannon . | . . . Launcher 1 | . 1 . Special Weapon . | . . . Impact Weapon 2 | . 2 . Slashing Weapon . | . . . Piercing Weapon . | . . . Special Melee Weapon . | . . . Unidentified Prototypes . | . . . Parts Lost 5 | . . 5 Power 2 | . . 2 Propulsion 2 | . . 2 Utility 1 | . . 1 Weapon . | . . . Highest Loss Streak 3 | . . 3 To Critical Strikes . | . . . Average Slot Usage (%) 90 | . 95 81 Engine 13 | . 14 12 Treads 25 | . 28 22 Storage 14 | . 14 14 Protection 7 | . 10 3 Ballistic Gun 7 | . 12 . Impact Weapon 19 | . 13 28 Naked Turns . | . . . Heaviest Build 24 | 11 24 24 Greatest Support 40 | 20 40 40 Greatest Overweight (x) 1 | . . 1 Average Overweight (x) . | . . . Largest Inventory Capacity 10 | . 10 10 Average Capacity 9 | . 9 10 Most Carried 10 | . 10 10 Average Carried 6 | . 5 6 Final Capacity 10 | 8 10 10 Final Carried 8 | 6 8 6 Class Distribution -------------------- 100% | Mutant Dominant Class ---------------- Mutant | -10/Materials Mutant | -10/Mines Resources | -11 -10 -10 ----------- Run | Jun Mat Min Matter Collected 425 | 200 191 34 Remotely . | . . . Salvage Created 609 | . 399 210 Parts 26 | . 19 7 Haulers Intercepted 1 | . 1 . Recyclers Shooed . | . . . Parts Field Recycled . | . . . Retrieved Matter . | . . . Parts Self-Destructed . | . . . Prevented . | . . . Kills | -11 -10 -10 ------- Run | Jun Mat Min Combat Hostiles Destroyed 20 | . 9 11 Melee 10 | . 1 9 Guns 6 | . 6 . AOE 1 | . 1 . Classes Destroyed 6 | . 6 . Worker 2 | . 2 . Hauler 1 | . 1 . Mechanic 1 | . 1 . Watcher 1 | . 1 . Swarmer 10 | . 2 8 Grunt 10 | . 7 3 Best Kill Streak 6 | . 6 3 Combat Bots Only 3 | . 3 3 Max Kills in Single Turn 4 | . 4 1 Gunslinging . | . . . Exploded 1 | . 1 . Melee 1 | . 1 1 Uniques/NPCs Destroyed . | . . . Combat | -11 -10 -10 -------- Run | Jun Mat Min Damage Taken 1257 | . 306 951 Core 255 | . 56 199 Absorbed by Shields . | . . . Core Remaining (%) 100 | 100 . . Volleys Fired 27 | . 27 . Largest 2 | . 2 . Hottest 50 | . 50 . Shots Fired 50 | . 50 . Gun 47 | . 47 . Cannon . | . . . Launcher 3 | . 3 . Special . | . . . Kinetic 47 | . 47 . Thermal . | . . . Explosive 3 | . 3 . Electromagnetic . | . . . Robot Hit Streak 13 | . 13 . Robot Miss Streak 3 | . 3 . Penetration Max . | . . . Secondary Targets . | . . . Shots Hit Robots 57 | . 39 18 Core Hits 24 | . 21 3 Critical Kills . | . . . Critical Parts Destroyed 7 | . 3 4 Critical Strikes 7 | . 3 4 Destroy 1 | . 1 . Smash 6 | . 2 4 Melee Attacks 42 | . 11 31 Impact 42 | . 11 31 Slashing . | . . . Piercing . | . . . Sneak Attacks 1 | . 1 . Combat Hostiles . | . . . Follow-up Attacks 4 | . 1 3 Damage Inflicted 1534 | . 808 726 Guns 267 | . 267 . Cannons . | . . . Explosions 237 | . 237 . Melee 1030 | . 304 726 Ramming . | . . . Kinetic 267 | . 267 . Thermal . | . . . Explosive 237 | . 237 . Electromagnetic . | . . . Impact 1030 | . 304 726 Slashing . | . . . Piercing . | . . . Highest Corruption 3 | . 2 3 Average Corruption 2 | . 1 2 Corruption Purged . | . . . Corruption Blocked . | . . . Effects 14 | . 6 8 Message Errors 3 | . 1 2 Matter Fused 3 | . 2 1 Heat Flow Errors 1 | . . 1 Parts Fused 1 | . 1 . Data Loss (minor) 2 | . . 2 Data Loss (major) 2 | . 1 1 Alerts 1 | . . 1 Weapon Failures 1 | . 1 . Overload Shots . | . . . Overflow Damage 427 | . 143 284 Projectiles . | . . . Explosions . | . . . Melee 427 | . 143 284 Knockbacks 3 | . 2 1 Impact 3 | . 2 1 Kinetic . | . . . Secondary . | . . . Self-Inflicted Damage 14 | . 14 . Shots 1 | . 1 . Rammed . | . . . Targets Rammed . | . . . Kicked . | . . . Crushed . | . . . Highest Temperature 258 | . 26 258 Average Temperature 43 | . 9 133 Received Heat Transfer 279 | . 135 144 Siege Activations . | . . . Robots Corrupted . | . . . Combat Hostiles . | . . . Parts Fried 9 | . 3 6 Impact Corruptions 15 | . 4 11 Robots Melted . | . . . Combat Hostiles . | . . . Parts Melted . | . . . Heat Transferred . | . . . Parts Sabotaged . | . . . Parts Stolen . | . . . Parts Stripped . | . . . Power Chain Reactions . | . . . Missiles Intercepted . | . . . Alert | -11 -10 -10 ------- Run | Jun Mat Min Peak Influence 267 | . 267 130 Initial . | . . . Average 92 | . 111 63 Maximum Alert Level 1 | . 1 . Low Security (%) 94 | . 90 100 Level 1 5 | . 9 . Level 2 . | . . . Level 3 . | . . . Level 4 . | . . . Level 5 . | . . . High Security . | . . . Max Security . | . . . Squads Dispatched 3 | . 3 . Investigation 3 | . 3 . Extermination . | . . . Reinforcement . | . . . Assault . | . . . Garrison . | . . . Intercept . | . . . Searches Triggered . | . . . Construction Impeded . | . . . Haulers Reinforced . | . . . Active Scanning Responses . | . . . Cargo Convoy Interrupts . | . . . Stealth | -11 -10 -10 --------- Run | Jun Mat Min Distress Signals 4 | . 4 . Communications Jammed . | . . . Distress Signals . | . . . Times Spotted 31 | . 18 13 Peak Tracking Total 5 | . 5 3 Tactical Retreats . | . . . Traps | -11 -10 -10 ------- Run | Jun Mat Min Traps Triggered 2 | . 1 1 Indirectly . | . . . Trap Hack Attempts . | . . . Triggered . | . . . Disarmed . | . . . Reprogrammed . | . . . Reused . | . . . Traps Extracted . | . . . Installed . | . . . Triggered . | . . . Machines | -11 -10 -10 ---------- Run | Jun Mat Min Machines Disabled . | . . . Max in Single Turn . | . . . Machines Repaired . | . . . Machines Sabotaged . | . . . Overloaded Fab Kills . | . . . Hacking | -11 -10 -10 --------- Run | Jun Mat Min Machines Accessed 5 | . 4 1 Terminals 4 | . 4 . Fabricators . | . . . Repair Stations . | . . . Recycling Units . | . . . Scanalyzers . | . . . Garrison Access . | . . . Total Hacks 15 | . 14 1 Successful 7 | . 6 1 Failed 8 | . 8 . Catastrophic 4 | . 4 . Database Lockouts . | . . . Manual . | . . . Terminals 14 | . 14 . Fabricators . | . . . Repair Stations . | . . . Recycling Units . | . . . Scanalyzers . | . . . Garrison Access . | . . . Terminal Hacks 7 | . 6 1 Record 2 | . 2 . Open Door 1 | . . 1 Terminal Index 1 | . 1 . Alert Level 1 | . 1 . Hauler Manifests 1 | . 1 . Zone Layout 1 | . 1 . Fabricator Hacks . | . . . Repair Station Hacks . | . . . Recycling Unit Hacks . | . . . Scanalyzer . | . . . Garrison Access Hacks . | . . . Unauthorized Hacks . | . . . Terminals . | . . . Fabricators . | . . . Repair Stations . | . . . Recycling Units . | . . . Scanalyzers . | . . . Garrison Access . | . . . Data Cores Recovered . | . . . Used . | . . . Hacking Detections 4 | . 4 . Full Trace Events 3 | . 3 . Feedback Events 1 | . 1 . Corruption 1 | . 1 . Feedback Blocked . | . . . Robot Schematics Acquired . | . . . Robots Built . | . . . Authchips . | . . . Time . | . . . Total Robot Build Rating . | . . . Part Schematics Acquired . | . . . Parts Built . | . . . Authchips . | . . . Time . | . . . Total Part Build Rating . | . . . Parts Repaired . | . . . Time . | . . . Parts Recycled . | . . . Recycled Matter . | . . . Retrieved Matter . | . . . Retrieved Components . | . . . Parts Scanalyzed . | . . . Part Schematics Acquired . | . . . Parts Damaged . | . . . Bothacking | -11 -10 -10 ------------ Run | Jun Mat Min Used RIF Installer . | . . . Robots Hacked . | . . . Non-combat . | . . . Combat . | . . . Robot Hacks Applied . | . . . Relay Couplers Released . | . . . Fabnet Peak Effective % . | . . . Robots Rewired . | . . . Allies Hacked . | . . . Hacks Repelled . | . . . Allies | -11 -10 -10 -------- Run | Jun Mat Min Total Allies . | . . . Largest Group . | . . . Highest-Rated Group . | . . . Highest-Rated Ally . | . . . Total Orders . | . . . Ally Attacks . | . . . Total Damage . | . . . Kills . | . . . Allies Corrupted . | . . . Allies Melted . | . . . Intel | -11 -10 -10 ------- Run | Jun Mat Min Robot Analysis Total . | . . . Derelict Logs Recovered 1 | . . 1 Drone Launches . | . . . Drone Recoveries . | . . . Exploration | -11 -10 -10 ------------- Run | Jun Mat Min Turns Passed 1322 | . 804 518 Spaces Moved 674 | 1 421 252 Core . | . . . Treads 671 | . 419 252 Legs 3 | 1 2 . Wheels . | . . . Hover . | . . . Flight . | . . . Fastest Speed 120 | 120 120 160 Average Speed 165 | 120 159 175 Slowest Speed 240 | 120 160 240 Overloaded Moves . | . . . Propulsion Burnouts . | . . . Robots Hopped . | . . . Cave-ins Triggered 1 | . . 1 Exploration Rate (%) 46 | 2 69 67 Regions Visited 2 Branch Regions 1 Pre-discovered Areas 1 | . . 1 Known Exits Taken . | . . . Unknown Exits Taken 2 | 1 1 . Scrap Searched 1 | . . 1 Spaces Dug . | . . . Terrain Destroyed 25 | . 25 . Melee . | . . . Projectile . | . . . AOE 25 | . 25 . Terrain Rammed . | . . . Walls Destroyed . | . . . Machines Disabled . | . . . Actions | -11 -10 -10 --------- Run | Jun Mat Min Total 788 | . 501 287 Wait 3 | . . 3 Move 672 | . 420 252 Hop . | . . . Pick Up 19 | . 18 1 Fast Attach . | . . . Attach 9 | . 6 3 Detach . | . . . Swap 5 | . 5 . Drop 16 | . 15 1 Fire 27 | . 27 . Melee 37 | . 10 27 Ram . | . . . Kick . | . . . Crush . | . . . Escape Stasis . | . . . Rewire . | . . . Trap . | . . . Miscellaneous . | . . . Route ------- -11/Junkyard -10/Materials (discovered 3 exits: [*Mat x2] / *Min) -10/Mines (discovered 2 exits: [*Mat x2]) History --------- Turn | Location | Event 1 | -11/Junkyard | Discovered new exit (range 0) 1 | -11/Junkyard | Entered Materials 308 | -10/Materials | Build established: Mutant 383 | -10/Materials | Discovered new exit (range 15) 532 | -10/Materials | Discovered new exit (range 5) 709 | -10/Materials | Discovered new exit (range 16) 805 | -10/Materials | Entered Mines 805 | -10/Mines | Discovered new exit (range 13) 813 | -10/Mines | Met a Derelict who couldn't figure out how to use a Trap Extractor 830 | -10/Mines | Crushed by falling debris 845 | -10/Mines | Core integrity fell below 50% 864 | -10/Mines | Lost 3 parts (1p1n1u) 1030 | -10/Mines | Learned location of Storage (-8) 1125 | -10/Mines | Discovered new exit (range 11) 1256 | -10/Mines | Core integrity fell below 20% 1323 | -10/Mines | Destroyed by S-10 Pest with Light Assault Rifle Last Messages --------------- 01251_ S-10 Pest destroyed. 01254_ System corrupted: IFF burst signal emitted. 01254_ Acquired 6 matter. 01257_ Destroyed Unknown Flight Unit. 01257_ S-10 Pest system corrupted by crushing effect. 01257_ S-10 Pest destroyed. 01259_ Imp. Ion Engine destroyed. 01264_ R-06 Scavenger collects Lgt. Ion Engine. 01267_ S-10 Pest destroyed. 01272_ F XUK%S X6IAC,MPEY%SJIP, 01317_ Destroyed Unknown Flight Unit. 01317_ S-10 Pest system corrupted by crushing effect. 01317_ Lgt. Ion Engine fried. 01317_ S-10 Pest destroyed. 01321_ S-10 Pest suffers critical hit (Smash). 01321_ Destroyed Lgt. Assault Rifle. 01321_ S-10 Pest system corrupted by crushing effect. 01321_ Unknown Flight Unit fried. 01321_ S-10 Pest destroyed. Map ----- +----------------------------------------------------+ | ??????## #### """ #?????# ### #???????? | | ????### """ #????# #?# #???????? | | ????# ### """ #????# ##?# ???????? | | ????# #?# #????## ###??# ???????? | | ????# ###?## ### #????### #????# ??????? | | ????# #????####??## ??????# #????## ??????? | | ????# ##??????????# ??????# #?????? ?????? | | ???## ##?????????? ??????? ?????? ?????? | | ??## ##????????? ??????? #??????# ##????? | | ?## ##???????? ????????###???????###?????? | | ?# #?????????????????????????????????????? | | ?# #?????????????????????????????????????? | | ## ##?????????????????????????????????????? | | # #????####??????????????????????????????? | | # #???## ##?????????????????????????????? | | ## ##??## #?????????????????????????????? | | ?## ##???# #?????????????????????????????? | | ??# #????# #?????????????????????????????? | | ??# ##????# #??????????????????????????????? | | ?## #???## #???????????????????????????????? | | ## #??##%=##???????????????????????????????? | | # ##??#[% ##???????????????????????????????? | | ##???# ##?????######???????????????????? | | #???## ####### ##??????????????????? | | ##?## s % #??????????????????? | | ### @ ##?????????????????? | | ####### % #?????????????????? | | ###?????# "??????????? | | ##??????? "??????????? | | ##???????# ## ### ?????????? | | # ##????????# ##?# ##???????????????? | | ## #####?????????####??? ##????????????????? | | ?## ##????????????????????? #?????????????????? | | ??## #??????????????????????? ?????????????????? | | ???# #??????????????????????? ????????????????? | | ???# #???????????????????????? ???????????????? | | ???## #????????????????????????? ???????????????? | | ????# #??????????????????????????#??????????????? | | ##### #?????????????????????????????????????????? | | #?????????????????????????????????????????? | | ########?????????????????????????????????????????? | | ?????????????????????????????????????????????????? | | ?????????????????????????????????????????????????? | | ?????????????????????????????????????????????????? | | ?????????????????????????????????????????????????? | | ?????????????????????????????????????????????????? | | ?????????????????????????????????????????????????? | | ?????????????????????????????????????????????????? | | ?????????????????????????????????????????????????? | | ?????????????????????????????????????????????????? | +----------------------------------------------------+ Best States ------------- Heat Dissipation 25 Energy Generation 12 Energy Capacity 265 Matter Stores 300 Matter Capacity 300 Sight Range 16 Terrain Scan Density 10 Armor Coverage 150 Evasion (%) 40 Recoil Reduction 2 Item Schematics ----------------- None Robot Schematics ------------------ None Fabricated ------------ Nothing Alien Tech Used ----------------- None Achievements -------------- None Challenges ------------ None Game ------ Seed InsulatedHoverLance Manual? 0 Play Time 00:10:13 Cumulative 78.5 hours Start 2023.07.04 @ 20:26:05 End 2023.07.04 @ 20:33:39 Sessions 1 Manual Loads 0 Difficulty Rogue Special Mode None Game No. 120 Rogue 120 Adventurer 0 Explorer 0 Win Type - Total 0 Types 0/0/0/0/0/0/0/0/0 Lore% 29 Gallery% 51 Achievement% 35 Wizard Run 0 Options --------- ASCII 0 Keyboard 0 Movement Mouse Keybinds 0 Fullscreen 2 Font 18/SmallcapsGlow Map View 76x50 Tactical HUD 1 Map Filters NONE Filters NONE Steam 1 RUN: 7b295a3e-cdf3-4706-a783-783e0a6d2433